[Event "*** Titled Tuesday Blitz"]
[Site "Chess.com"]
[Date "2020.04.28"]
[Round "7"]
[White "Zarikovs1999"]
[Black "MathiasWomacka"]
[Result "0-1"]
[WhiteElo "2273"]
[BlackElo "2434"]
[TimeControl "180+1"]
[EndTime "11:18:41 PDT"]
[Termination "MathiasWomacka won by resignation"]

1. e4 {[%clk 0:03:00.9]} 1... c5 {[%clk 0:02:59.9]} 2. Nf3 {[%clk 0:03:01.3]}
2... d6 {[%clk 0:03:00]} 3. Bb5+ {[%clk 0:03:01.8]} 3... Nd7 {[%clk 0:02:58.1]}
4. O-O {[%clk 0:03:00.9]} 4... a6 {[%clk 0:02:58.3]} 5. Bd3 {[%clk 0:03:00.9]}
5... Ngf6 {[%clk 0:02:55.4]} 6. c3 {[%clk 0:02:57.9]} 6... b5 {[%clk 0:02:50.4]}
7. Bc2 {[%clk 0:02:54.7]} 7... Bb7 {[%clk 0:02:50.5]} 8. Re1 {[%clk 0:02:53.9]}
8... Qc7 {[%clk 0:02:45.6]} 9. d4 {[%clk 0:02:51.1]} 9... cxd4 {[%clk
0:02:45.4]} 10. cxd4 {[%clk 0:02:52]} 10... Rc8 {[%clk 0:02:45.6]} 11. Bd3
{[%clk 0:02:18.6]} 11... Bxe4 {[%clk 0:02:43.8]} 12. Bxe4 {[%clk 0:02:15.3]}
12... Nxe4 {[%clk 0:02:44.7]} 13. Nc3 {[%clk 0:02:03.4]} 13... Nxc3 {[%clk
0:02:43.1]} 14. bxc3 {[%clk 0:02:04.3]} 14... e6 {[%clk 0:02:43.5]} 15. Ng5
{[%clk 0:01:55.9]} 15... Be7 {[%clk 0:02:41.4]} 16. Qh5 {[%clk 0:01:39.8]} 16...
g6 {[%clk 0:02:15.7]} 17. Qh6 {[%clk 0:01:34.3]} 17... Qxc3 {[%clk 0:02:11.6]}
18. Bf4 {[%clk 0:01:21.7]} 18... Qxd4 {[%clk 0:02:06.1]} 19. Be3 {[%clk
0:01:10]} 19... Qf6 {[%clk 0:01:21.7]} 20. Rad1 {[%clk 0:00:49.3]} 20... d5
{[%clk 0:01:05.9]} 21. Bd4 {[%clk 0:00:40.8]} 21... Qxg5 {[%clk 0:01:04.4]} 22.
Qxg5 {[%clk 0:00:25.3]} 22... Bxg5 {[%clk 0:01:05.3]} 23. Bxh8 {[%clk
0:00:25.8]} 23... Kf8 {[%clk 0:00:58.2]} 24. Bb2 {[%clk 0:00:20.6]} 24... Rc2
{[%clk 0:00:55.8]} 25. Ba3+ {[%clk 0:00:20.6]} 25... Kg7 {[%clk 0:00:55.8]} 26.
g3 {[%clk 0:00:18.6]} 26... Rxa2 {[%clk 0:00:54.6]} 27. Bd6 {[%clk 0:00:18]}
27... Nb6 {[%clk 0:00:50.3]} 28. Ra1 {[%clk 0:00:16.9]} 28... Rxa1 {[%clk
0:00:47.3]} 29. Rxa1 {[%clk 0:00:17.8]} 29... Na4 {[%clk 0:00:47.8]} 30. Be5+
{[%clk 0:00:12.5]} 30... Bf6 {[%clk 0:00:47.9]} 31. f4 {[%clk 0:00:12.6]} 31...
Bxe5 {[%clk 0:00:46.1]} 32. fxe5 {[%clk 0:00:13.5]} 32... f6 {[%clk 0:00:46.9]}
33. exf6+ {[%clk 0:00:13.8]} 33... Kxf6 {[%clk 0:00:47.8]} 34. Kf2 {[%clk
0:00:14.5]} 34... e5 {[%clk 0:00:48.1]} 35. Ke2 {[%clk 0:00:15.4]} 35... e4
{[%clk 0:00:45.1]} 36. Ke3 {[%clk 0:00:13.9]} 36... Ke5 {[%clk 0:00:45.3]} 37.
Rd1 {[%clk 0:00:13.7]} 37... b4 {[%clk 0:00:38.1]} 38. Rb1 {[%clk 0:00:11.5]}
38... d4+ {[%clk 0:00:36.6]} 39. Kf2 {[%clk 0:00:10.3]} 39... a5 {[%clk
0:00:31.2]} 40. Ra1 {[%clk 0:00:05.8]} 40... e3+ {[%clk 0:00:29.3]} 41. Ke2
{[%clk 0:00:05]} 41... Nc3+ {[%clk 0:00:28.5]} 42. Kd3 {[%clk 0:00:05.5]} 42...
a4 {[%clk 0:00:28.9]} 43. Kc4 {[%clk 0:00:05.2]} 43... e2 {[%clk 0:00:27.6]} 44.
Kxb4 {[%clk 0:00:04.9]} 44... Ke4 {[%clk 0:00:26.9]} 45. Kc4 {[%clk 0:00:05.5]}
45... Ke3 {[%clk 0:00:26.6]} 0-1

[Event "*** Titled Tuesday Blitz"]
[Site "Chess.com"]
[Date "2020.04.28"]
[Round "7"]
[White "Vamostodorecto"]
[Black "Sjakkerntobi"]
[Result "0-1"]
[WhiteElo "2440"]
[BlackElo "2194"]
[TimeControl "180+1"]
[EndTime "11:18:41 PDT"]
[Termination "Sjakkerntobi won on time"]

1. d4 {[%clk 0:03:00.9]} 1... Nf6 {[%clk 0:02:55.3]} 2. c4 {[%clk 0:03:00.9]}
2... e6 {[%clk 0:02:55.3]} 3. Nc3 {[%clk 0:03:01]} 3... d5 {[%clk 0:02:55.1]} 4.
Nf3 {[%clk 0:03:01.5]} 4... Be7 {[%clk 0:02:55.2]} 5. cxd5 {[%clk 0:02:58.7]}
5... exd5 {[%clk 0:02:55]} 6. Bg5 {[%clk 0:02:58.9]} 6... c6 {[%clk 0:02:55]} 7.
e3 {[%clk 0:02:59.3]} 7... Bf5 {[%clk 0:02:55.5]} 8. Nh4 {[%clk 0:02:56.7]} 8...
Bg6 {[%clk 0:02:36.7]} 9. Nxg6 {[%clk 0:02:54]} 9... hxg6 {[%clk 0:02:37.6]} 10.
Bd3 {[%clk 0:02:48.8]} 10... Ne4 {[%clk 0:02:36.9]} 11. Bxe7 {[%clk 0:02:41.6]}
11... Qxe7 {[%clk 0:02:37.8]} 12. Qc2 {[%clk 0:02:35.4]} 12... f5 {[%clk
0:02:35]} 13. Bxe4 {[%clk 0:01:14.4]} 13... fxe4 {[%clk 0:02:33.5]} 14. Nxd5
{[%clk 0:00:50.6]} 14... cxd5 {[%clk 0:02:28.6]} 15. Qc8+ {[%clk 0:00:51.5]}
15... Qd8 {[%clk 0:02:29.2]} 16. Qxb7 {[%clk 0:00:47.8]} 16... Nd7 {[%clk
0:02:29.1]} 17. Qxd5 {[%clk 0:00:44.6]} 17... Nf6 {[%clk 0:02:29.5]} 18. Qe6+
{[%clk 0:00:39.5]} 18... Qe7 {[%clk 0:02:27.7]} 19. Qc6+ {[%clk 0:00:39.2]}
19... Kf7 {[%clk 0:02:28]} 20. O-O {[%clk 0:00:34.9]} 20... Rac8 {[%clk
0:02:26.5]} 21. Qa6 {[%clk 0:00:34.1]} 21... Ng4 {[%clk 0:02:06.3]} 22. h3
{[%clk 0:00:33.6]} 22... Qc7 {[%clk 0:02:05.1]} 23. f4 {[%clk 0:00:22.6]} 23...
Nxe3 {[%clk 0:01:44.8]} 24. Rfe1 {[%clk 0:00:17.6]} 24... Nf5 {[%clk 0:01:20.5]}
25. Rxe4 {[%clk 0:00:17.3]} 25... Qc6 {[%clk 0:01:21.2]} 26. Qxc6 {[%clk
0:00:10.4]} 26... Rxc6 {[%clk 0:01:22.1]} 27. d5 {[%clk 0:00:09.5]} 27... Rc5
{[%clk 0:01:20.5]} 28. Rd1 {[%clk 0:00:07.6]} 28... Rd8 {[%clk 0:01:20.1]} 29.
Ra4 {[%clk 0:00:08.2]} 29... a5 {[%clk 0:01:18.1]} 30. b4 {[%clk 0:00:04.3]}
30... axb4 {[%clk 0:01:17.4]} 31. Rxb4 {[%clk 0:00:05.2]} 31... Rcxd5 {[%clk
0:01:12.8]} 32. Rxd5 {[%clk 0:00:06.1]} 32... Rxd5 {[%clk 0:01:13.5]} 33. a4
{[%clk 0:00:06.7]} 33... Rd4 {[%clk 0:01:11.2]} 34. Rb7+ {[%clk 0:00:04.7]}
34... Ke6 {[%clk 0:01:07.8]} 35. Ra7 {[%clk 0:00:03.7]} 35... Kd5 {[%clk
0:01:07.4]} 36. a5 {[%clk 0:00:03.9]} 36... Ke4 {[%clk 0:01:07.9]} 37. a6 {[%clk
0:00:03.6]} 37... Kxf4 {[%clk 0:01:06.5]} 38. Rf7 {[%clk 0:00:02.5]} 38... Kg3
{[%clk 0:00:55.9]} 39. Kf1 {[%clk 0:00:02.8]} 39... Ra4 {[%clk 0:00:56.2]} 40.
a7 {[%clk 0:00:02.6]} 40... Ne3+ {[%clk 0:00:54.4]} 41. Ke2 {[%clk 0:00:02.7]}
41... Nxg2 {[%clk 0:00:54.7]} 42. Rxg7 {[%clk 0:00:03.3]} 42... Nf4+ {[%clk
0:00:54.9]} 43. Ke3 {[%clk 0:00:02.7]} 43... Nd5+ {[%clk 0:00:52.8]} 44. Kd3
{[%clk 0:00:02.6]} 44... Nf4+ {[%clk 0:00:53]} 45. Kc3 {[%clk 0:00:02.6]} 45...
Kxh3 {[%clk 0:00:51]} 46. Kb3 {[%clk 0:00:02.8]} 46... Ra1 {[%clk 0:00:51.3]}
47. Kb4 {[%clk 0:00:03]} 47... Kg4 {[%clk 0:00:49.7]} 48. Kb5 {[%clk 0:00:02.8]}
48... Kf5 {[%clk 0:00:50.1]} 49. Kb6 {[%clk 0:00:02.5]} 49... Ne6 {[%clk
0:00:50.4]} 50. Rf7+ {[%clk 0:00:01.5]} 50... Ke5 {[%clk 0:00:49.9]} 51. Re7
{[%clk 0:00:01.3]} 51... Kd6 {[%clk 0:00:49.3]} 0-1

[Event "*** Titled Tuesday Blitz"]
[Site "Chess.com"]
[Date "2020.04.28"]
[Round "7"]
[White "Kolle05"]
[Black "IsaacWiebe"]
[Result "1-0"]
[WhiteElo "2419"]
[BlackElo "2172"]
[TimeControl "180+1"]
[EndTime "11:18:43 PDT"]
[Termination "Kolle05 won by resignation"]

1. e4 {[%clk 0:02:59.7]} 1... e5 {[%clk 0:02:59]} 2. Nf3 {[%clk 0:02:58.9]} 2...
Nc6 {[%clk 0:02:58.9]} 3. Bb5 {[%clk 0:02:58.3]} 3... a6 {[%clk 0:02:59.4]} 4.
Ba4 {[%clk 0:02:58.2]} 4... Nf6 {[%clk 0:02:58.9]} 5. Qe2 {[%clk 0:02:58.7]}
5... d6 {[%clk 0:02:53.9]} 6. O-O {[%clk 0:02:57]} 6... Be7 {[%clk 0:02:53.4]}
7. c3 {[%clk 0:02:56.3]} 7... O-O {[%clk 0:02:50.9]} 8. h3 {[%clk 0:02:55.5]}
8... b5 {[%clk 0:02:38.2]} 9. Bc2 {[%clk 0:02:54.4]} 9... Bb7 {[%clk 0:02:37.7]}
10. a3 {[%clk 0:02:46.1]} 10... Re8 {[%clk 0:02:34.5]} 11. d4 {[%clk 0:02:45.2]}
11... Bf8 {[%clk 0:02:32.5]} 12. Rd1 {[%clk 0:02:13.7]} 12... Qe7 {[%clk
0:02:09.3]} 13. Bg5 {[%clk 0:02:06.3]} 13... g6 {[%clk 0:02:07.4]} 14. Nbd2
{[%clk 0:01:43.4]} 14... Bg7 {[%clk 0:02:06.3]} 15. Nf1 {[%clk 0:01:42.9]} 15...
h6 {[%clk 0:02:01.3]} 16. Bxf6 {[%clk 0:01:30.5]} 16... Qxf6 {[%clk 0:01:57.4]}
17. d5 {[%clk 0:01:31.4]} 17... Na5 {[%clk 0:01:43.3]} 18. b3 {[%clk 0:01:29.9]}
18... c6 {[%clk 0:01:38]} 19. dxc6 {[%clk 0:01:28.5]} 19... Bxc6 {[%clk
0:01:37.6]} 20. b4 {[%clk 0:01:24.8]} 20... Nb7 {[%clk 0:01:37.5]} 21. Ne3
{[%clk 0:01:21.1]} 21... Rac8 {[%clk 0:01:29.1]} 22. Qe1 {[%clk 0:01:04.6]}
22... Red8 {[%clk 0:01:23.9]} 23. Nd5 {[%clk 0:01:04]} 23... Bxd5 {[%clk
0:01:23.8]} 24. Rxd5 {[%clk 0:01:04.9]} 24... Qe7 {[%clk 0:01:22.2]} 25. Bb3
{[%clk 0:01:04.2]} 25... Qc7 {[%clk 0:01:21.2]} 26. Rd3 {[%clk 0:01:02]} 26...
a5 {[%clk 0:01:17]} 27. Rc1 {[%clk 0:00:59.1]} 27... axb4 {[%clk 0:01:13.8]} 28.
axb4 {[%clk 0:01:00]} 28... Qb6 {[%clk 0:01:11.5]} 29. Rd5 {[%clk 0:00:56.1]}
29... Rc6 {[%clk 0:00:39.5]} 30. Qe2 {[%clk 0:00:51.8]} 30... Qc7 {[%clk
0:00:39.5]} 31. Rxb5 {[%clk 0:00:48.9]} 31... Rxc3 {[%clk 0:00:36.3]} 32. Rxc3
{[%clk 0:00:48.4]} 32... Qxc3 {[%clk 0:00:36.1]} 33. Bxf7+ {[%clk 0:00:47.9]}
33... Kxf7 {[%clk 0:00:36.7]} 34. Rxb7+ {[%clk 0:00:47.6]} 34... Kg8 {[%clk
0:00:37.2]} 35. Qa2+ {[%clk 0:00:43.8]} 35... d5 {[%clk 0:00:32.5]} 36. Qa7
{[%clk 0:00:32.1]} 36... Qc1+ {[%clk 0:00:29.2]} 37. Kh2 {[%clk 0:00:30.7]}
37... Qf4+ {[%clk 0:00:29.7]} 38. g3 {[%clk 0:00:30.4]} 38... Qf6 {[%clk
0:00:29.9]} 39. exd5 {[%clk 0:00:27.5]} 39... Rxd5 {[%clk 0:00:27.5]} 40. Qa8+
{[%clk 0:00:25.2]} 40... Kh7 {[%clk 0:00:27.1]} 41. Rxg7+ {[%clk 0:00:24.1]}
41... Kxg7 {[%clk 0:00:28]} 42. Qxd5 {[%clk 0:00:24.3]} 42... e4 {[%clk
0:00:26]} 43. Qxe4 {[%clk 0:00:21.7]} 43... Qb6 {[%clk 0:00:26.9]} 44. Qd4+
{[%clk 0:00:21.3]} 44... Qxd4 {[%clk 0:00:27.1]} 45. Nxd4 {[%clk 0:00:22.2]}
45... Kf6 {[%clk 0:00:27.2]} 46. b5 {[%clk 0:00:23.1]} 46... Ke5 {[%clk
0:00:28]} 47. b6 {[%clk 0:00:22.3]} 47... Kxd4 {[%clk 0:00:28.9]} 48. b7 {[%clk
0:00:22.2]} 48... Ke4 {[%clk 0:00:29.8]} 49. b8=Q {[%clk 0:00:22.4]} 49... Kf3
{[%clk 0:00:30.7]} 50. Qf4+ {[%clk 0:00:22.3]} 50... Ke2 {[%clk 0:00:31.6]} 51.
Qxh6 {[%clk 0:00:22.7]} 51... Kf1 {[%clk 0:00:32.5]} 52. Qxg6 {[%clk 0:00:23.1]}
52... Kxf2 {[%clk 0:00:30.8]} 53. g4 {[%clk 0:00:22]} 53... Kf1 {[%clk
0:00:31.7]} 54. h4 {[%clk 0:00:21.5]} 54... Kf2 {[%clk 0:00:32.6]} 55. h5 {[%clk
0:00:21.1]} 55... Kf3 {[%clk 0:00:33.5]} 56. h6 {[%clk 0:00:21.6]} 56... Kf2
{[%clk 0:00:34]} 57. h7 {[%clk 0:00:21.7]} 57... Kf1 {[%clk 0:00:34.9]} 58. h8=Q
{[%clk 0:00:21.6]} 1-0

[Event "*** Titled Tuesday Blitz"]
[Site "Chess.com"]
[Date "2020.04.28"]
[Round "7"]
[White "kakakz"]
[Black "EvilMorty23"]
[Result "1-0"]
[WhiteElo "2414"]
[BlackElo "2517"]
[TimeControl "180+1"]
[EndTime "11:18:44 PDT"]
[Termination "kakakz won by checkmate"]

1. d4 {[%clk 0:03:00]} 1... Nf6 {[%clk 0:02:59.9]} 2. c4 {[%clk 0:02:59.6]} 2...
e6 {[%clk 0:03:00.1]} 3. Nf3 {[%clk 0:02:59.5]} 3... b6 {[%clk 0:02:59.3]} 4. a3
{[%clk 0:02:59]} 4... a5 {[%clk 0:02:58.4]} 5. Nc3 {[%clk 0:02:56.5]} 5... Bb7
{[%clk 0:02:58.5]} 6. Qc2 {[%clk 0:02:55.9]} 6... d6 {[%clk 0:02:58]} 7. e4
{[%clk 0:02:55.6]} 7... Nbd7 {[%clk 0:02:57.9]} 8. Bd3 {[%clk 0:02:48.7]} 8...
e5 {[%clk 0:02:58.2]} 9. O-O {[%clk 0:02:44.4]} 9... h6 {[%clk 0:02:56.9]} 10.
Bd2 {[%clk 0:02:37.5]} 10... Be7 {[%clk 0:02:55.5]} 11. b4 {[%clk 0:02:37.2]}
11... O-O {[%clk 0:02:54.1]} 12. Nd5 {[%clk 0:02:30.3]} 12... Re8 {[%clk
0:02:43.4]} 13. bxa5 {[%clk 0:02:28.1]} 13... bxa5 {[%clk 0:02:40.5]} 14. Rab1
{[%clk 0:02:25.1]} 14... Bc6 {[%clk 0:02:37.3]} 15. Nxe7+ {[%clk 0:02:18.5]}
15... Qxe7 {[%clk 0:02:27.9]} 16. d5 {[%clk 0:02:19.4]} 16... Nc5 {[%clk
0:02:13.4]} 17. dxc6 {[%clk 0:02:19.1]} 17... Ra6 {[%clk 0:02:13.8]} 18. Rb5
{[%clk 0:02:01.8]} 18... a4 {[%clk 0:02:02.8]} 19. Be3 {[%clk 0:01:57.1]} 19...
Ne6 {[%clk 0:01:54.3]} 20. c5 {[%clk 0:01:48.4]} 20... d5 {[%clk 0:01:50.9]} 21.
Nxe5 {[%clk 0:01:12.3]} 21... dxe4 {[%clk 0:01:41]} 22. Bxe4 {[%clk 0:01:03.5]}
22... Nxe4 {[%clk 0:01:35.5]} 23. Qxe4 {[%clk 0:01:01.9]} 23... Nd8 {[%clk
0:01:31.5]} 24. f4 {[%clk 0:00:34.8]} 24... f6 {[%clk 0:01:31.2]} 25. Qd5+
{[%clk 0:00:33.8]} 25... Kh7 {[%clk 0:01:27.9]} 26. Qd3+ {[%clk 0:00:30.9]}
26... Kg8 {[%clk 0:01:25.8]} 27. Nc4 {[%clk 0:00:24.6]} 27... Rxc6 {[%clk
0:01:18.8]} 28. Bf2 {[%clk 0:00:24.6]} 28... Ne6 {[%clk 0:01:18.6]} 29. f5
{[%clk 0:00:22.8]} 29... Nf4 {[%clk 0:01:18.7]} 30. Qf3 {[%clk 0:00:21.7]} 30...
Ne2+ {[%clk 0:01:16]} 31. Kh1 {[%clk 0:00:22]} 31... Qf7 {[%clk 0:01:14.5]} 32.
Qxc6 {[%clk 0:00:21.6]} 32... Rd8 {[%clk 0:01:02.1]} 33. Ne3 {[%clk 0:00:19.7]}
33... Qa2 {[%clk 0:00:52.6]} 34. Qe6+ {[%clk 0:00:19.8]} 34... Qxe6 {[%clk
0:00:52.3]} 35. fxe6 {[%clk 0:00:20.7]} 35... Re8 {[%clk 0:00:52.4]} 36. Re1
{[%clk 0:00:20.2]} 36... Nd4 {[%clk 0:00:51.4]} 37. Rb4 {[%clk 0:00:20.5]} 37...
Nxe6 {[%clk 0:00:49.9]} 38. Nd5 {[%clk 0:00:20.5]} 38... Kf7 {[%clk 0:00:49.3]}
39. Rbe4 {[%clk 0:00:19.3]} 39... c6 {[%clk 0:00:48.9]} 40. Nf4 {[%clk
0:00:17.4]} 40... Nc7 {[%clk 0:00:46.2]} 41. Rxe8 {[%clk 0:00:17.3]} 41... Nxe8
{[%clk 0:00:47.1]} 42. Re4 {[%clk 0:00:16.9]} 42... g5 {[%clk 0:00:44.5]} 43.
Nd3 {[%clk 0:00:16.9]} 43... f5 {[%clk 0:00:45.4]} 44. Rxa4 {[%clk 0:00:17]}
44... Nf6 {[%clk 0:00:46.3]} 45. Rd4 {[%clk 0:00:16.6]} 45... Kg6 {[%clk
0:00:47.2]} 46. a4 {[%clk 0:00:16.8]} 46... Ng4 {[%clk 0:00:46.3]} 47. a5 {[%clk
0:00:15.4]} 47... f4 {[%clk 0:00:44.8]} 48. a6 {[%clk 0:00:15.2]} 48... Kh5
{[%clk 0:00:43.5]} 49. a7 {[%clk 0:00:15.1]} 49... f3 {[%clk 0:00:44]} 50. Rxg4
{[%clk 0:00:13.5]} 50... fxg2+ {[%clk 0:00:44.9]} 51. Rxg2 {[%clk 0:00:13.2]}
51... g4 {[%clk 0:00:44.8]} 52. a8=Q {[%clk 0:00:14.1]} 52... g3 {[%clk
0:00:44.4]} 53. Qe8+ {[%clk 0:00:12.7]} 53... Kg4 {[%clk 0:00:43]} 54. Rxg3+
{[%clk 0:00:12.7]} 54... Kf5 {[%clk 0:00:43.9]} 55. Qe5# {[%clk 0:00:12.1]} 1-0

[Event "*** Titled Tuesday Blitz"]
[Site "Chess.com"]
[Date "2020.04.28"]
[Round "7"]
[White "mfwagnerpeixoto"]
[Black "Nara_Kh"]
[Result "0-1"]
[WhiteElo "2206"]
[BlackElo "2460"]
[TimeControl "180+1"]
[EndTime "11:18:44 PDT"]
[Termination "Nara_Kh won by checkmate"]

1. e4 {[%clk 0:03:00.9]} 1... c5 {[%clk 0:02:59.5]} 2. Nf3 {[%clk 0:02:59.4]}
2... d6 {[%clk 0:02:59.3]} 3. d4 {[%clk 0:02:59.9]} 3... Nf6 {[%clk 0:02:58.9]}
4. Nc3 {[%clk 0:02:58.2]} 4... cxd4 {[%clk 0:02:59.4]} 5. Nxd4 {[%clk
0:02:58.7]} 5... a6 {[%clk 0:02:59.9]} 6. Bg5 {[%clk 0:02:55.6]} 6... Nbd7
{[%clk 0:02:59.7]} 7. f4 {[%clk 0:02:53.7]} 7... Qb6 {[%clk 0:02:58.3]} 8. Nb3
{[%clk 0:02:44.9]} 8... e6 {[%clk 0:02:52.8]} 9. Qd2 {[%clk 0:02:35.8]} 9... Be7
{[%clk 0:02:51.4]} 10. O-O-O {[%clk 0:02:34.3]} 10... Qc7 {[%clk 0:02:48.7]} 11.
Be2 {[%clk 0:02:29.6]} 11... b5 {[%clk 0:02:37.8]} 12. Bf3 {[%clk 0:02:25.5]}
12... Bb7 {[%clk 0:02:36.3]} 13. Rhe1 {[%clk 0:02:08.7]} 13... O-O {[%clk
0:02:20.2]} 14. e5 {[%clk 0:01:59.2]} 14... Bxf3 {[%clk 0:01:42.4]} 15. exf6
{[%clk 0:01:15.9]} 15... gxf6 {[%clk 0:01:36.6]} 16. gxf3 {[%clk 0:00:54.2]}
16... fxg5 {[%clk 0:01:36.5]} 17. Nd5 {[%clk 0:00:42.9]} 17... exd5 {[%clk
0:01:26.4]} 18. Rxe7 {[%clk 0:00:41.6]} 18... Rae8 {[%clk 0:01:08.3]} 19. Rxe8
{[%clk 0:00:31.4]} 19... Rxe8 {[%clk 0:01:09.2]} 20. fxg5 {[%clk 0:00:31.4]}
20... Qc4 {[%clk 0:00:54.7]} 21. Qxd5 {[%clk 0:00:28.1]} 21... Qf4+ {[%clk
0:00:54]} 22. Kb1 {[%clk 0:00:26.2]} 22... Ne5 {[%clk 0:00:48.2]} 23. a3 {[%clk
0:00:23.4]} 23... Qxf3 {[%clk 0:00:44.1]} 24. Qxd6 {[%clk 0:00:20.7]} 24... Nc4
{[%clk 0:00:38.7]} 25. Qd4 {[%clk 0:00:18.2]} 25... Qe3 {[%clk 0:00:25.1]} 26.
Qxe3 {[%clk 0:00:17.1]} 26... Rxe3 {[%clk 0:00:26]} 27. Rd8+ {[%clk 0:00:16.4]}
27... Kg7 {[%clk 0:00:26.3]} 28. Ra8 {[%clk 0:00:17]} 28... Re6 {[%clk 0:00:23]}
29. Nd4 {[%clk 0:00:16.2]} 29... Re1+ {[%clk 0:00:21.9]} 30. Ka2 {[%clk
0:00:15.7]} 30... Rh1 {[%clk 0:00:20.1]} 31. h4 {[%clk 0:00:13.7]} 31... Ne3
{[%clk 0:00:18]} 32. Rxa6 {[%clk 0:00:13.3]} 32... Rxh4 {[%clk 0:00:16.7]} 33.
Nxb5 {[%clk 0:00:11.6]} 33... Rg4 {[%clk 0:00:16.7]} 34. a4 {[%clk 0:00:10.8]}
34... Rxg5 {[%clk 0:00:16.5]} 35. a5 {[%clk 0:00:11.7]} 35... Rxb5 {[%clk
0:00:15.1]} 36. b3 {[%clk 0:00:11.7]} 36... h5 {[%clk 0:00:14.5]} 37. c4 {[%clk
0:00:12.3]} 37... Rb8 {[%clk 0:00:12.9]} 38. Rb6 {[%clk 0:00:12.6]} 38... Ra8
{[%clk 0:00:12.3]} 39. a6 {[%clk 0:00:11.9]} 39... h4 {[%clk 0:00:12.4]} 40. b4
{[%clk 0:00:11.7]} 40... Nxc4 {[%clk 0:00:11.7]} 41. b5 {[%clk 0:00:12.6]} 41...
Nxb6 {[%clk 0:00:11.3]} 42. Kb3 {[%clk 0:00:13.3]} 42... h3 {[%clk 0:00:11.6]}
43. Kb4 {[%clk 0:00:14.1]} 43... h2 {[%clk 0:00:12.1]} 44. Ka5 {[%clk 0:00:15]}
44... h1=Q {[%clk 0:00:12]} 45. Kxb6 {[%clk 0:00:15.9]} 45... Rb8+ {[%clk
0:00:11.9]} 46. Ka7 {[%clk 0:00:15.8]} 46... Qa8# {[%clk 0:00:11.7]} 0-1

[Event "*** Titled Tuesday Blitz"]
[Site "Chess.com"]
[Date "2020.04.28"]
[Round "7"]
[White "Kezin_Roman"]
[Black "GM_dmitrij"]
[Result "1-0"]
[WhiteElo "2716"]
[BlackElo "2970"]
[TimeControl "180+1"]
[EndTime "11:18:45 PDT"]
[Termination "Kezin_Roman won by resignation"]

1. d4 {[%clk 0:03:00.9]} 1... Nf6 {[%clk 0:03:00]} 2. c4 {[%clk 0:03:01.1]} 2...
e6 {[%clk 0:03:00.3]} 3. g3 {[%clk 0:03:01.6]} 3... c5 {[%clk 0:02:59.6]} 4. d5
{[%clk 0:03:01.6]} 4... exd5 {[%clk 0:03:00.5]} 5. cxd5 {[%clk 0:03:02.3]} 5...
d6 {[%clk 0:03:01.4]} 6. Nc3 {[%clk 0:03:01.6]} 6... g6 {[%clk 0:03:02.3]} 7.
Nf3 {[%clk 0:03:01.9]} 7... Bg7 {[%clk 0:03:03.2]} 8. Bg2 {[%clk 0:03:02.5]}
8... O-O {[%clk 0:03:04.1]} 9. O-O {[%clk 0:03:03]} 9... Re8 {[%clk 0:03:04.7]}
10. Nd2 {[%clk 0:03:03.4]} 10... a6 {[%clk 0:03:03.7]} 11. a4 {[%clk 0:03:03.3]}
11... Nbd7 {[%clk 0:03:04.2]} 12. h3 {[%clk 0:03:03.7]} 12... Rb8 {[%clk
0:03:03.4]} 13. Nc4 {[%clk 0:03:03]} 13... Ne5 {[%clk 0:03:02.5]} 14. Na3 {[%clk
0:03:02.9]} 14... Nh5 {[%clk 0:03:00.6]} 15. e4 {[%clk 0:03:01.3]} 15... Bd7
{[%clk 0:02:32.9]} 16. a5 {[%clk 0:03:00.4]} 16... Qxa5 {[%clk 0:02:30.4]} 17.
g4 {[%clk 0:02:58.9]} 17... Nf6 {[%clk 0:02:27.8]} 18. f4 {[%clk 0:02:57.4]}
18... Nexg4 {[%clk 0:02:25.4]} 19. hxg4 {[%clk 0:02:58.3]} 19... Nxg4 {[%clk
0:02:26.3]} 20. f5 {[%clk 0:02:58.4]} 20... h5 {[%clk 0:02:26]} 21. Bg5 {[%clk
0:02:48.4]} 21... Qb4 {[%clk 0:02:19.4]} 22. Qd2 {[%clk 0:02:31.6]} 22... Qd4+
{[%clk 0:02:15.6]} 23. Qxd4 {[%clk 0:02:14.6]} 23... cxd4 {[%clk 0:01:48]} 24.
Nd1 {[%clk 0:02:14.8]} 24... gxf5 {[%clk 0:01:33.9]} 25. exf5 {[%clk 0:02:08.8]}
25... Be5 {[%clk 0:01:33.3]} 26. Nc4 {[%clk 0:02:00.1]} 26... Bh2+ {[%clk
0:01:21.8]} 27. Kh1 {[%clk 0:01:59.7]} 27... Bb5 {[%clk 0:01:22.7]} 28. b3
{[%clk 0:01:59.1]} 28... Be5 {[%clk 0:00:47.3]} 29. Ndb2 {[%clk 0:01:39.2]}
29... Ne3 {[%clk 0:00:40.7]} 30. Rf2 {[%clk 0:01:20.1]} 30... f6 {[%clk
0:00:20.5]} 31. Bxe3 {[%clk 0:00:40.9]} 31... dxe3 {[%clk 0:00:19.3]} 32. Re2
{[%clk 0:00:41.4]} 32... Bg3 {[%clk 0:00:12.7]} 33. Rxe3 {[%clk 0:00:34.7]}
33... Rxe3 {[%clk 0:00:12.6]} 34. Nxe3 {[%clk 0:00:35.6]} 34... Be5 {[%clk
0:00:13.4]} 35. Rb1 {[%clk 0:00:31.5]} 35... Re8 {[%clk 0:00:10.2]} 36. Nbc4
{[%clk 0:00:27.7]} 36... Bf4 {[%clk 0:00:09.4]} 37. Nc2 {[%clk 0:00:22.5]} 37...
Be5 {[%clk 0:00:06.5]} 38. Re1 {[%clk 0:00:21.5]} 38... Kf7 {[%clk 0:00:05.1]}
39. Bf3 {[%clk 0:00:21.4]} 39... Rh8 {[%clk 0:00:03.5]} 40. Re4 {[%clk 0:00:15]}
40... Bd7 {[%clk 0:00:03.9]} 41. Nd4 {[%clk 0:00:14.1]} 41... Bxd4 {[%clk
0:00:03.2]} 42. Nxd6+ {[%clk 0:00:14.1]} 42... Kg7 {[%clk 0:00:03.1]} 43. Rxd4
{[%clk 0:00:14.2]} 43... Kh6 {[%clk 0:00:02.3]} 44. Nf7+ {[%clk 0:00:13]} 1-0